bitfinex-derivatives/quotes_BTCF0:USTF0_20250724
["timestamp","ask_amount","ask_price","bid_price","bid_amount"]
[1753369822778,2.36805535,119540.0,119530.0,0.6522922]
[1753369822976,2.72110996,119540.0,119530.0,0.6522922]
[1753369823379,2.72310996,119540.0,119530.0,0.6522922]
[1753369823770,1.74513535,119540.0,119530.0,0.6522922]
[1753369823977,2.37049535,119540.0,119530.0,0.6522922]
[1753369824277,2.72354996,119540.0,119530.0,0.6522922]
[1753369824668,2.37049535,119540.0,119530.0,0.6522922]
[1753369824881,2.72354996,119540.0,119530.0,0.6522922]
[1753369825788,2.37049535,119540.0,119530.0,0.6522922]
[1753369826281,2.09818996,119540.0,119530.0,0.6522922]
[1753369826486,0.75475535,119540.0,119530.0,1.00534681]
[1753369827682,0.75475535,119540.0,119530.0,0.6522922]
[1753369828078,0.75767535,119540.0,119530.0,1.00534681]
[1753369828491,0.75945535,119540.0,119530.0,0.6522922]
[1753369828682,0.75945535,119540.0,119530.0,1.00534681]
[1753369828988,0.75845535,119540.0,119530.0,0.68168844]
[1753369829289,0.75945535,119540.0,119530.0,1.03474305]
[1753369829590,0.75845535,119540.0,119530.0,1.03474305]
[1753369830487,0.75845535,119540.0,119530.0,0.68168844]
[1753369830685,0.75845535,119540.0,119530.0,1.03474305]
[1753369831591,0.75845535,119540.0,119530.0,0.68168844]
[1753369831790,0.75845535,119540.0,119530.0,1.03474305]
[1753369832390,0.75845535,119540.0,119530.0,0.68168844]
[1753369832586,0.75845535,119540.0,119530.0,1.03474305]
[1753369832794,0.75845535,119540.0,119530.0,0.68168844]
[1753369833395,0.75845535,119540.0,119530.0,1.03474305]
[1753369833792,0.75845535,119540.0,119530.0,0.68168844]
[1753369833994,0.75845535,119540.0,119530.0,1.03474305]
[1753369834400,0.75845535,119540.0,119530.0,0.68168844]
[1753369835288,0.75845535,119540.0,119530.0,1.03474305]
[1753369835490,0.75845535,119540.0,119530.0,0.68168844]
[1753369835689,0.75845535,119540.0,119530.0,1.03474305]
[1753369835890,0.75845535,119540.0,119530.0,0.68168844]
[1753369836689,1.47230996,119540.0,119530.0,0.68168844]
[1753369836889,0.84378996,119540.0,119530.0,0.68168844]
[1753369837187,1.12776535,119540.0,119530.0,0.68168844]
[1753369837497,1.48081996,119540.0,119530.0,0.68168844]
[1753369837684,1.48081996,119540.0,119530.0,0.50244844]
[1753369838390,1.48081996,119540.0,119530.0,0.5818422]
[1753369838584,1.12776535,119540.0,119530.0,1.00534681]
[1753369838785,1.12673535,119540.0,119530.0,0.68168844]
[1753369839195,1.47978996,119540.0,119530.0,0.68168844]
[1753369839795,1.48089996,119540.0,119530.0,0.68168844]
[1753369839994,1.12784535,119540.0,119530.0,0.68168844]
[1753369840497,1.48089996,119540.0,119530.0,0.68168844]
[1753369840695,1.12784535,119540.0,119530.0,0.68168844]
[1753369841193,1.48089996,119540.0,119530.0,0.68168844]
[1753369842600,1.48089996,119540.0,119530.0,0.61476844]
[1753369843197,1.12784535,119540.0,119530.0,0.61476844]
[1753369843595,1.48089996,119540.0,119530.0,0.61476844]
[1753369846310,1.48089996,119540.0,119530.0,0.31860844]
[1753369847002,1.48089996,119540.0,119530.0,0.61162844]
[1753369847405,1.48089996,119540.0,119530.0,0.53886844]
[1753369847599,1.48089996,119540.0,119530.0,0.28786844]
[1753369847600,1.29506175,119540.0,119530.0,0.28786844]
[1753369847905,1.48089996,119540.0,119530.0,0.28786844]
[1753369848302,1.48089996,119540.0,119530.0,0.2584722]
[1753369848699,1.12784535,119540.0,119530.0,0.2584722]
[1753369848896,1.48089996,119540.0,119530.0,0.2584722]
[1753369849099,1.64811636,119540.0,119530.0,0.2584722]
[1753369849300,1.48089996,119540.0,119530.0,0.2584722]
[1753369850309,0.84489996,119540.0,119530.0,0.3952922]
[1753369850604,1.48218996,119540.0,119530.0,0.61092844]
[1753369851508,0.84489996,119540.0,119530.0,0.61092844]
[1753369852104,1.48297996,119540.0,119530.0,0.61092844]
[1753369852501,1.48166996,119540.0,119530.0,0.61092844]
[1753369853308,1.12861535,119540.0,119530.0,0.61092844]
[1753369853513,1.48166996,119540.0,119530.0,0.61092844]
[1753369853703,1.12861535,119540.0,119530.0,0.61092844]
[1753369853906,1.48166996,119540.0,119530.0,0.61092844]
[1753369854210,1.12972535,119540.0,119530.0,0.61092844]
[1753369854410,1.48277996,119540.0,119530.0,0.61092844]
[1753369854610,1.48469996,119540.0,119530.0,0.28613844]
[1753369854814,1.48469996,119540.0,119530.0,0.60919844]
[1753369855313,1.13164535,119540.0,119530.0,0.60919844]
[1753369855610,1.48469996,119540.0,119530.0,0.60919844]
[1753369855809,1.48469996,119540.0,119530.0,0.53643844]
[1753369856006,1.48469996,119540.0,119530.0,0.42965844]
[1753369856405,1.13164535,119540.0,119530.0,0.42965844]
[1753369856600,0.84489996,119540.0,119530.0,0.42965844]
[1753369856814,1.48437996,119540.0,119530.0,0.28613844]
[1753369857915,1.48437996,119540.0,119530.0,0.39291844]
[1753369860008,1.48437996,119540.0,119530.0,0.28613844]
[1753369860808,1.48437996,119540.0,119530.0,0.1672259]
[1753369860809,1.65159636,119540.0,119530.0,0.1672259]
[1753369861210,1.48437996,119540.0,119530.0,0.1672259]
[1753369861407,0.84489996,119540.0,119530.0,0.2929459]
[1753369861611,1.48078996,119540.0,119530.0,0.5379959]
[1753369861910,1.48054996,119540.0,119530.0,0.5379959]
[1753369862213,1.48165996,119540.0,119530.0,0.5379959]
[1753369862716,1.64887636,119540.0,119530.0,0.2149359]
[1753369863111,0.1701204,119530.0,119520.0,0.32796374]
[1753369863312,0.88397501,119530.0,119520.0,0.32796374]
[1753369863514,1.00916804,119530.0,119520.0,0.32796374]
[1753369863813,1.00916804,119530.0,119520.0,0.6216275]
[1753369864019,0.65611343,119530.0,119520.0,0.2149544]
[1753369864206,1.36222265,119530.0,119520.0,0.2149544]
[1753369864406,1.00916804,119530.0,119520.0,0.2149544]
[1753369864606,1.00916804,119530.0,119520.0,0.04771]
[1753369865113,0.1701344,119520.0,119510.0,0.2985909]
[1753369865318,1.87344362,119520.0,119510.0,0.2985909]
[1753369865511,1.99971397,119520.0,119510.0,0.2985909]
[1753369867205,2.00071397,119520.0,119510.0,0.2985909]
[1753369867410,2.00071397,119520.0,119510.0,0.2567768]
[1753369867611,2.00071397,119520.0,119510.0,0.3635568]
[1753369867921,2.00171397,119520.0,119510.0,0.214963]
[1753369868111,2.00171397,119520.0,119510.0,0.167253]
[1753369868510,2.00171397,119520.0,119510.0,0.214963]
[1753369868713,2.00171397,119520.0,119500.0,0.36210393]
[1753369868714,0.00289,119510.0,119500.0,0.36210393]
[1753369869015,0.00289,119510.0,119500.0,0.07591829]
[1753369869016,2.26329992,119510.0,119500.0,0.07591829]
[1753369869520,2.26329992,119510.0,119500.0,0.07480829]
[1753369869913,2.26329992,119510.0,119500.0,0.13337829]
[1753369870311,0.1672864,119490.0,119480.0,0.17674624]
[1753369870510,1.5230064,119490.0,119480.0,0.216604]
[1753369870710,2.00228897,119490.0,119480.0,0.49600024]
[1753369871022,2.35534358,119490.0,119480.0,0.417384]
[1753369871219,2.35534358,119490.0,119480.0,0.167384]
[1753369871926,1.72122358,119490.0,119480.0,0.167384]
[1753369872127,2.35450358,119490.0,119480.0,0.167384]
[1753369872323,1.64839436,119490.0,119480.0,0.17617324]
[1753369872515,2.35450358,119490.0,119480.0,0.17617324]
[1753369872821,1.48110796,119490.0,119480.0,0.34347364]
[1753369873023,2.18757718,119490.0,119480.0,0.22539324]
[1753369873228,2.35486358,119490.0,119480.0,0.22539324]
[1753369873417,2.35542358,119490.0,119480.0,0.34347364]
[1753369873721,2.35542358,119490.0,119470.0,0.20410024]
[1753369873722,0.1673004,119480.0,119470.0,0.07861624]
[1753369874024,0.1673284,119460.0,119450.0,0.04409437]
[1753369874230,0.1673704,119430.0,119420.0,0.15888249]
[1753369874522,1.83414108,119430.0,119420.0,0.27539609]
[1753369874723,1.83414108,119430.0,119420.0,0.2166036]
[1753369875428,1.48108647,119430.0,119420.0,0.2186036]
[1753369875724,1.83410108,119430.0,119420.0,0.1693836]
[1753369876322,0.84668647,119430.0,119420.0,0.1693836]
[1753369876623,1.83378108,119430.0,119420.0,0.2186036]
[1753369876921,0.84668647,119430.0,119420.0,0.5306236]
[1753369877120,1.11984647,119430.0,119420.0,0.5306236]
[1753369877320,1.11210108,119430.0,119420.0,0.5306236]
[1753369879222,1.47290108,119430.0,119420.0,0.4619336]
[1753369879420,1.11984647,119430.0,119420.0,0.4619336]
[1753369879817,1.47290108,119430.0,119420.0,0.4619336]
[1753369880023,1.47290108,119430.0,119420.0,0.2206036]
[1753369880218,1.64027148,119430.0,119420.0,0.004]
[1753369880530,1.80774348,119430.0,119420.0,0.004]
[1753369881532,1.45468887,119430.0,119420.0,0.1713844]
[1753369881727,1.64027148,119430.0,119420.0,0.004]
[1753369881927,1.64027148,119430.0,119420.0,0.002]
[1753369882128,1.64027148,119430.0,119410.0,0.11374]
[1753369882129,0.1673844,119420.0,119410.0,0.11374]
[1753369882332,1.04871902,119420.0,119410.0,0.11374]
[1753369882532,1.17420938,119420.0,119410.0,0.11374]
[1753369882832,0.1674052,119410.0,119400.0,0.1674125]
[1753369883025,0.1674052,119410.0,119390.0,0.3003488]
[1753369883026,1.51917981,119410.0,119390.0,0.3003488]
[1753369883327,0.71385461,119400.0,119390.0,0.2166465]
[1753369883533,1.23432172,119400.0,119390.0,0.04922]
[1753369883732,0.1674265,119390.0,119380.0,0.04922]
[1753369884033,2.90130766,119390.0,119370.0,0.3003907]
[1753369884234,0.71385461,119380.0,119370.0,0.2585278]
[1753369884429,0.92315611,119380.0,119360.0,0.1760686]
[1753369884628,1.35349461,119370.0,119360.0,0.1674686]
[1753369884824,0.71385461,119370.0,119360.0,0.0499]
[1753369885027,1.48055259,119370.0,119360.0,0.2173686]
[1753369885230,1.48055259,119370.0,119360.0,0.2665886]
[1753369885430,2.0010617,119370.0,119360.0,0.2173686]
[1753369885626,2.5022718,119370.0,119350.0,0.1674809]
[1753369885928,1.23437832,119360.0,119340.0,0.3567097]
[1753369886137,1.52265721,119350.0,119330.0,0.09823]
[1753369886325,1.52265721,119350.0,119330.0,0.2168307]
[1753369886326,1.96833461,119340.0,119330.0,0.2168307]
[1753369886533,1.61528,119340.0,119330.0,0.2168307]
[1753369886829,2.09421363,119340.0,119330.0,0.2168307]
[1753369887234,0.3608,119380.0,119370.0,0.1597708]
[1753369887431,0.77546532,119380.0,119370.0,0.04922]
[1753369887630,0.77546532,119380.0,119370.0,0.5266945]
[1753369887631,0.48667029,119380.0,119370.0,0.5266945]
[1753369887831,1.12903029,119380.0,119370.0,0.5266945]
[1753369888136,1.13475029,119380.0,119370.0,0.5266945]
[1753369888333,1.54941561,119380.0,119370.0,0.5266945]
[1753369888529,1.13475029,119380.0,119370.0,0.5266945]
[1753369889132,0.48667029,119380.0,119370.0,0.5266945]
[1753369889442,1.13639029,119380.0,119370.0,0.5266945]
[1753369890141,0.48667029,119380.0,119370.0,0.5266945]
[1753369890339,1.6156,119410.0,119380.0,0.21604]
[1753369890545,0.64952,119400.0,119390.0,0.5541014]
[1753369890739,0.77516113,119400.0,119390.0,0.6522314]
[1753369890934,0.64952,119400.0,119390.0,0.6522314]
[1753369891135,0.1258805,119400.0,119390.0,0.6522314]
[1753369891538,0.7757205,119400.0,119390.0,0.6522314]
[1753369891838,0.7757605,119400.0,119390.0,0.6103748]
[1753369892038,1.55122582,119400.0,119390.0,0.5685202]
[1753369892242,1.1365605,119400.0,119390.0,0.5685202]
[1753369892540,1.71863832,119400.0,119390.0,0.04922]
[1753369892743,1.55098582,119400.0,119390.0,0.2166465]
[1753369893042,1.55298582,119400.0,119390.0,0.2166465]
[1753369893443,1.1383205,119400.0,119390.0,0.3147765]
[1753369893637,0.4602562,119400.0,119390.0,0.53546078]
[1753369893837,0.3608,119440.0,119420.0,0.425266]
[1753369894042,0.37795258,119440.0,119430.0,0.21604]
[1753369894233,1.73578697,119440.0,119430.0,0.21604]
[1753369894442,1.73578697,119440.0,119430.0,0.04922]
[1753369895247,0.67160165,119440.0,119430.0,0.04922]
[1753369895454,0.67160165,119440.0,119430.0,0.21604]
[1753369895455,1.15640525,119440.0,119430.0,0.21604]
[1753369895843,1.15940525,119440.0,119430.0,0.21604]
[1753369896142,1.15904525,119440.0,119430.0,0.21604]
[1753369896346,1.32640165,119440.0,119430.0,0.21604]
[1753369896748,1.74106697,119440.0,119430.0,0.14735]
[1753369897053,1.74106697,119440.0,119430.0,0.04922]
[1753369898147,1.32640165,119440.0,119430.0,0.04922]
[1753369898348,1.74106697,119440.0,119430.0,0.04922]
[1753369899451,0.1673704,119430.0,119420.0,0.14789]
[1753369899653,0.9599883,119430.0,119420.0,0.04976]
[1753369899847,1.06802342,119430.0,119420.0,0.04976]
[1753369901157,0.041851,119410.0,119400.0,0.16824]
[1753369901346,1.3020344,119410.0,119400.0,0.16824]
[1753369901647,1.3020344,119410.0,119400.0,0.36486]
[1753369901854,1.84176404,119410.0,119400.0,0.36486]
[1753369902040,1.85900148,119410.0,119400.0,0.36486]
[1753369902245,1.42709872,119410.0,119400.0,0.36486]
[1753369902959,1.42909872,119410.0,119400.0,0.36486]
[1753369903452,1.44635143,119410.0,119400.0,0.36486]
[1753369903855,1.44735143,119410.0,119400.0,0.36486]
[1753369904153,1.44735143,119410.0,119390.0,0.01562865]
[1753369904154,0.2092656,119400.0,119390.0,0.04976]
[1753369904348,2.23949092,119400.0,119390.0,0.04976]
[1753369904548,2.38163205,119400.0,119390.0,0.04976]
[1753369904950,2.61344673,119400.0,119390.0,0.36486]
[1753369905150,2.59615633,119400.0,119390.0,0.38058989]
[1753369905456,2.59615633,119400.0,119390.0,0.36486]
[1753369905656,1.95167633,119400.0,119390.0,0.36486]
[1753369905959,2.60143633,119400.0,119390.0,0.36486]
[1753369906449,2.61872768,119400.0,119390.0,0.36486]
[1753369907749,2.61872768,119400.0,119390.0,0.38042779]
[1753369907950,2.60143633,119400.0,119390.0,0.38042779]
[1753369908159,1.9689735,119400.0,119390.0,0.38042779]
[1753369908453,2.61725734,119400.0,119390.0,0.36486]
[1753369909851,3.03192266,119400.0,119390.0,0.04976]
[1753369911358,0.1674265,119390.0,119380.0,0.1482]
[1753369911557,0.96019283,119390.0,119380.0,0.04976]
[1753369911753,1.08527404,119390.0,119380.0,0.04976]
[1753369912070,1.08527404,119390.0,119380.0,0.36486]
[1753369912071,0.29250771,119390.0,119380.0,0.36486]
[1753369912359,1.35345303,119390.0,119380.0,0.04976]
[1753369912566,1.71425303,119390.0,119380.0,0.1482]
[1753369913256,0.93826771,119390.0,119380.0,0.36486]
[1753369913454,0.93798771,119390.0,119380.0,0.36486]
[1753369913665,0.29250771,119390.0,119380.0,0.94696582]
[1753369913855,0.93798771,119390.0,119380.0,0.8931005]
[1753369914055,0.29250771,119390.0,119380.0,1.30776582]
[1753369914250,0.12508121,119390.0,119380.0,1.30776582]
[1753369914456,0.93802771,119390.0,119380.0,1.30776582]
[1753369914760,0.93802771,119390.0,119380.0,0.8931005]
[1753369915161,0.93802771,119390.0,119380.0,1.30776582]
[1753369915358,0.93802771,119390.0,119380.0,0.8931005]
[1753369915560,0.93802771,119390.0,119380.0,1.30776582]
[1753369915760,0.93802771,119390.0,119380.0,0.8931005]
[1753369917262,0.95534339,119390.0,119380.0,0.8931005]
[1753369917463,0.95534339,119390.0,119380.0,0.72566]
[1753369918462,0.93802771,119390.0,119380.0,0.8931005]
[1753369918655,0.95534433,119390.0,119380.0,0.72566]
[1753369918860,0.95534433,119390.0,119380.0,0.8931005]
[1753369919164,0.93802771,119390.0,119380.0,0.72566]
[1753369919363,0.93902771,119390.0,119380.0,0.72566]
[1753369919569,1.35369303,119390.0,119380.0,0.72566]
[1753369919959,0.93902771,119390.0,119380.0,0.72566]
[1753369920266,0.94002771,119390.0,119380.0,0.8931005]
[1753369920960,0.94002771,119390.0,119380.0,0.72566]
[1753369921467,0.94002771,119390.0,119380.0,0.5323005]
[1753369921663,0.94002771,119390.0,119380.0,0.8931005]
[1753369921859,0.29450771,119390.0,119380.0,0.8931005]
[1753369922065,0.94018771,119390.0,119380.0,0.8931005]
[1753369922562,1.35485303,119390.0,119380.0,0.36486]
[1753369923166,1.35485303,119390.0,119380.0,0.29506]
[1753369923467,1.37217785,119390.0,119380.0,0.19662]
[1753369923657,1.73297785,119390.0,119380.0,0.04976]
[1753369924867,0.1674405,119380.0,119370.0,0.11842596]
[1753369925062,0.94290582,119380.0,119370.0,0.06866596]
[1753369925258,0.1674545,119370.0,119360.0,0.09366329]
[1753369925475,1.1731345,119370.0,119360.0,0.09366329]
[1753369925667,1.71325715,119370.0,119360.0,0.16078143]
[1753369926267,1.71325715,119370.0,119360.0,0.17629768]
[1753369926468,1.71325715,119370.0,119360.0,0.16078143]
[1753369926666,1.71325715,119370.0,119360.0,0.11102143]
[1753369926965,0.1674685,119360.0,119350.0,0.11214955]
[1753369927157,0.94293382,119360.0,119350.0,0.04390329]
[1753369927464,0.1674826,119350.0,119340.0,0.09366329]
[1753369927664,2.84170792,119350.0,119340.0,0.09366329]
[1753369927865,2.96766598,119350.0,119340.0,0.09366329]
[1753369928258,2.55300066,119350.0,119340.0,0.09366329]
[1753369928459,2.96766598,119350.0,119340.0,0.09366329]
[1753369928969,2.96766598,119350.0,119340.0,0.09666329]
[1753369929171,2.55300066,119350.0,119340.0,0.09666329]
[1753369929368,2.96766598,119350.0,119340.0,0.09666329]
[1753369929866,2.55300066,119350.0,119340.0,0.09666329]
[1753369930067,2.96766598,119350.0,119340.0,0.1642402]
[1753369930259,2.32390598,119350.0,119340.0,0.1144802]
[1753369930458,2.96678598,119350.0,119340.0,0.1144802]
[1753369931068,2.55212066,119350.0,119340.0,0.1638702]
[1753369931369,2.96678598,119350.0,119340.0,0.1638702]
[1753369932074,2.55212066,119350.0,119340.0,0.1638702]
[1753369932269,2.96678598,119350.0,119340.0,0.1638702]
[1753369932460,0.29344066,119350.0,119340.0,0.43651691]
[1753369932666,0.93592066,119350.0,119340.0,1.37947883]
[1753369932977,0.93580066,119350.0,119340.0,1.37947883]
[1753369933169,0.29344066,119350.0,119340.0,1.37947883]
[1753369933371,0.29344066,119350.0,119340.0,1.025606]
[1753369933575,0.29344066,119350.0,119340.0,1.44027132]
[1753369933771,0.76811806,119350.0,119340.0,1.44027132]
[1753369934073,0.2511967,119370.0,119360.0,0.5334085]
[1753369934276,0.8932767,119370.0,119360.0,1.35313925]
[1753369934464,0.12647373,119370.0,119360.0,1.43685885]
[1753369934669,0.64172,119370.0,119360.0,1.39259342]
[1753369934865,0.64172,119370.0,119360.0,0.9779281]
[1753369935071,1.506413,119380.0,119370.0,0.5333945]
[1753369935378,2.148133,119380.0,119370.0,0.5776515]
[1753369935577,2.148133,119380.0,119370.0,0.410197]
[1753369936078,2.508893,119380.0,119370.0,0.36594]
[1753369936263,0.1674545,119370.0,119360.0,0.41019]
[1753369936468,0.94291982,119370.0,119360.0,0.04939]
[1753369936771,0.5282545,119370.0,119360.0,0.14699]
[1753369936975,0.5282545,119370.0,119360.0,0.21899]
[1753369937181,0.1674545,119370.0,119360.0,0.21899]
[1753369937372,0.5282545,119370.0,119360.0,0.21899]
[1753369938280,0.5282545,119370.0,119360.0,0.04939]
[1753369938476,1.06875253,119370.0,119360.0,0.04939]
[1753369938976,1.08606732,119370.0,119360.0,0.04939]
[1753369939774,0.96047331,119370.0,119350.0,0.04939]
[1753369939976,1.70978132,119360.0,119350.0,0.04939]
[1753369940370,1.83486791,119360.0,119350.0,0.04939]
[1753369940974,1.42020259,119360.0,119350.0,0.05039]
[1753369941181,1.83486791,119360.0,119350.0,0.05039]
[1753369941672,1.8521712,119360.0,119350.0,0.05139]
[1753369942373,1.8521712,119360.0,119350.0,0.05039]
[1753369942573,1.83486791,119360.0,119350.0,0.05139]
[1753369942873,1.15175821,119360.0,119350.0,0.19834]
[1753369943073,0.3608,119370.0,119360.0,0.5334085]
[1753369943378,1.00056,119370.0,119360.0,0.80112382]
[1753369943779,1.1680145,119370.0,119360.0,0.21899]
[1753369943983,0.5282545,119370.0,119360.0,0.21899]
[1753369944182,1.1679345,119370.0,119360.0,0.04939]
[1753369944887,1.1852287,119370.0,119360.0,0.04939]
[1753369945584,1.1679345,119370.0,119360.0,0.04939]
[1753369948782,0.5282545,119370.0,119360.0,0.04939]
[1753369948988,0.5282545,119370.0,119360.0,0.5334085]
[1753369949183,1.5482799,119380.0,119370.0,0.5333945]
[1753369949485,1.5482799,119380.0,119370.0,0.78060532]
[1753369949486,2.27028102,119380.0,119370.0,0.78060532]
[1753369949684,2.27028102,119380.0,119370.0,0.36594]
[1753369950585,2.27028102,119380.0,119370.0,0.5333945]
[1753369950781,2.27128102,119380.0,119370.0,0.5333945]
[1753369951086,2.27228102,119380.0,119370.0,0.8941945]
[1753369951484,2.27184102,119380.0,119370.0,0.8941945]
[1753369951782,1.38342462,119380.0,119370.0,0.8941945]
[1753369951982,0.002,119380.0,119370.0,1.30885982]
[1753369952285,0.63876,119380.0,119370.0,1.30885982]
[1753369952485,0.639,119380.0,119370.0,1.34805849]
[1753369952685,0.589,119380.0,119370.0,1.36805849]
[1753369952880,0.48151,119380.0,119370.0,1.36805849]
[1753369953080,0.2511297,119400.0,119390.0,0.2888165]
[1753369953283,0.26843624,119400.0,119390.0,1.16188182]
[1753369953883,0.86338184,119400.0,119390.0,1.16188182]
[1753369954080,0.82160824,119400.0,119390.0,1.16188182]
[1753369954482,1.5063493,119410.0,119400.0,0.1674124]
[1753369954685,1.90926857,119410.0,119400.0,1.16186772]
[1753369954882,2.07666697,119410.0,119400.0,1.16186772]
[1753369955392,2.14284697,119410.0,119400.0,1.16186772]
[1753369955598,2.19254697,119410.0,119400.0,0.7472024]
[1753369955897,2.19254697,119410.0,119400.0,0.21899]
[1753369956092,2.60721229,119410.0,119400.0,0.04939]
[1753369956292,2.60721229,119410.0,119400.0,0.001]
[1753369956499,2.96801229,119410.0,119400.0,0.001]
[1753369957092,3.09364701,119410.0,119400.0,0.001]
[1753369957599,3.09364701,119410.0,119400.0,0.06667529]
[1753369957898,3.09364701,119410.0,119400.0,0.001]
[1753369958099,3.07633844,119410.0,119400.0,0.001]
[1753369959891,2.66167312,119410.0,119400.0,0.001]
[1753369960097,3.07633844,119410.0,119400.0,0.001]
[1753369960304,0.3814865,119390.0,119380.0,0.089597]
[1753369960601,1.79403182,119390.0,119380.0,0.04534]
[1753369960798,1.79403182,119390.0,119380.0,0.089597]
[1753369960799,1.3793665,119390.0,119380.0,0.089597]
[1753369960989,1.3793665,119390.0,119380.0,0.2570375]
[1753369961196,1.0185665,119390.0,119380.0,0.2127805]
[1753369961600,1.3793665,119390.0,119380.0,0.04534]
[1753369961899,1.3333065,119390.0,119380.0,0.5384005]
[1753369962298,1.3793665,119390.0,119380.0,0.5384005]
[1753369962500,0.7422865,119390.0,119380.0,0.5384005]
[1753369962803,1.3787265,119390.0,119380.0,0.5384005]
[1753369963102,1.3784465,119390.0,119380.0,0.04834]
[1753369963302,1.3784465,119390.0,119380.0,0.05034]
[1753369963603,0.7422865,119390.0,119380.0,0.2177805]
[1753369963901,1.3796065,119390.0,119380.0,0.2177805]
[1753369964500,1.3796065,119390.0,119380.0,0.05034]
[1753369965809,1.3796065,119390.0,119380.0,0.2177805]
[1753369966603,1.3796065,119390.0,119380.0,0.05034]
[1753369967198,1.79427182,119390.0,119380.0,0.05034]
[1753369967804,1.3796065,119390.0,119380.0,0.05034]
[1753369968104,1.3796065,119390.0,119380.0,0.005]
[1753369968105,1.79427182,119390.0,119380.0,0.005]
[1753369968800,1.3796065,119390.0,119380.0,0.22468]
[1753369970499,1.3796065,119390.0,119380.0,0.05034]
[1753369970702,1.79203182,119390.0,119380.0,0.05034]
[1753369971307,1.3773665,119390.0,119380.0,0.05034]
[1753369971602,1.91797969,119390.0,119380.0,0.005]
[1753369974298,1.91897969,119390.0,119380.0,0.002]
[1753369974503,1.93628466,119390.0,119380.0,0.002]
[1753369975007,1.52161934,119390.0,119380.0,0.002]
[1753369975207,1.93628466,119390.0,119380.0,0.002]
[1753369976008,1.93672466,119390.0,119380.0,0.002]
[1753369976211,1.50475437,119390.0,119380.0,0.36996]
[1753369976404,0.86923437,119390.0,119380.0,0.36996]
[1753369976602,0.29494787,119390.0,119380.0,1.31286582]
[1753369976803,0.6364,119390.0,119380.0,1.35712282]
[1753369977000,0.1673882,119420.0,119410.0,0.2092423]
[1753369977306,0.65270694,119420.0,119410.0,0.84358762]
[1753369977514,0.82009134,119420.0,119410.0,0.80173892]
[1753369977806,0.65270694,119420.0,119410.0,0.80173892]
[1753369978110,0.18569134,119420.0,119410.0,0.80173892]
[1753369978309,0.82129134,119420.0,119410.0,0.80173892]
[1753369978507,0.82129134,119420.0,119410.0,0.3870736]
[1753369978707,0.82129134,119420.0,119410.0,0.80173892]
[1753369979206,0.82129134,119420.0,119410.0,0.3870736]
[1753369979410,0.82129134,119420.0,119410.0,0.21968]
[1753369979612,0.85243134,119420.0,119410.0,0.21968]
[1753369980106,0.85243134,119420.0,119410.0,0.3870784]
[1753369980299,0.85243134,119420.0,119410.0,0.4553584]
[1753369980511,0.88300134,119420.0,119410.0,0.5353584]
[1753369980806,0.88400134,119420.0,119410.0,0.5353584]
[1753369981011,0.97988134,119420.0,119410.0,0.36796]
[1753369981405,0.97988134,119420.0,119410.0,0.39694968]
[1753369981814,0.97988134,119420.0,119410.0,0.56434808]
[1753369982411,0.97988134,119420.0,119410.0,0.39694968]
[1753369983504,1.75446666,119420.0,119410.0,0.12185968]
[1753369983713,1.75446666,119420.0,119410.0,0.07432968]
[1753369984215,1.39366666,119420.0,119410.0,0.07432968]
[1753369984416,1.75446666,119420.0,119410.0,0.07432968]
[1753369984810,0.97900134,119420.0,119410.0,0.92514808]
[1753369985110,0.93294134,119420.0,119410.0,0.56434808]
[1753369985312,0.01930694,119420.0,119410.0,0.9790134]
[1753369985616,0.65318694,119420.0,119410.0,1.3398134]
[1753369986011,0.82057134,119420.0,119410.0,1.3398134]
[1753369986713,0.82057134,119420.0,119410.0,0.92514808]
[1753369987610,0.85171134,119420.0,119410.0,0.92514808]
[1753369987917,0.8344044,119420.0,119410.0,0.92514808]
[1753369989718,0.8032644,119420.0,119410.0,0.92514808]
[1753369990219,0.8032644,119420.0,119410.0,0.9790134]
[1753369990513,0.8032644,119420.0,119410.0,1.3398134]
[1753369991924,0.9589744,119420.0,119410.0,0.92514808]
[1753369992219,0.8658244,119420.0,119410.0,0.92514808]
[1753369992624,0.63588,119420.0,119410.0,1.3398134]
[1753369993119,0.002,119420.0,119410.0,1.5390134]
[1753369993323,1.8966991,119450.0,119440.0,0.5341264]
[1753369993518,2.29335416,119450.0,119440.0,0.94879172]
[1753369993822,0.64768416,119450.0,119440.0,0.94879172]
[1753369994017,0.6118011,119460.0,119450.0,0.3132023]
[1753369994315,1.33457319,119460.0,119450.0,0.36677]
[1753369994715,1.74923851,119460.0,119450.0,0.5341124]
[1753369994914,1.74923851,119460.0,119450.0,0.36677]
[1753369994915,1.33457319,119460.0,119450.0,0.36677]
[1753369995421,1.33457319,119460.0,119450.0,0.5341124]
[1753369996015,1.33457319,119460.0,119450.0,0.56281263]
[1753369996221,1.29273939,119460.0,119450.0,0.56281263]
[1753369996517,1.08357209,119460.0,119450.0,0.56281263]
[1753369996817,1.25090039,119460.0,119450.0,0.56281263]
[1753369997013,1.03815209,119460.0,119450.0,0.97747795]
[1753369997213,0.81485039,119460.0,119450.0,0.97747795]
[1753369997608,0.64852209,119460.0,119450.0,0.97747795]
[1753369998020,0.64852209,119460.0,119450.0,0.56281263]
[1753369998320,0.64852209,119460.0,119450.0,1.33827795]
[1753369998522,0.63124,119460.0,119450.0,1.33827795]
[1753369998712,0.001,119460.0,119450.0,1.33827795]
[1753369998911,0.62964,119460.0,119450.0,1.33827795]
[1753369999422,0.7969683,119460.0,119450.0,1.35720228]
[1753369999820,0.62964,119460.0,119450.0,0.94253696]
[1753370000021,0.7969683,119460.0,119450.0,0.94253696]
[1753370000223,0.8267983,119460.0,119450.0,1.35720228]
[1753370001125,0.8267983,119460.0,119450.0,0.94253696]
[1753370001522,0.8267983,119460.0,119450.0,1.35720228]
[1753370002026,0.8288383,119460.0,119450.0,0.94253696]
[1753370002426,0.8288383,119460.0,119450.0,1.35720228]
[1753370003228,0.8615683,119460.0,119450.0,1.35720228]
[1753370004916,0.001,119460.0,119450.0,1.35720228]
[1753370005121,0.4066654,119480.0,119470.0,0.36677]
[1753370005318,1.0384254,119480.0,119470.0,0.5340843]
[1753370005520,1.16378464,119480.0,119470.0,0.5340843]
[1753370006015,0.53202464,119480.0,119470.0,0.5340843]
[1753370006216,1.12247614,119480.0,119470.0,0.5340843]
[1753370006425,1.48327614,119480.0,119470.0,0.5340843]
[1753370006929,1.48327614,119480.0,119470.0,0.36677]
[1753370007427,0.3230243,119470.0,119460.0,0.04639]
[1753370007625,0.3230383,119460.0,119450.0,0.09401456]
[1753370007826,0.3230383,119460.0,119450.0,0.04762456]
[1753370007827,1.3179583,119460.0,119450.0,0.04762456]
[1753370008023,1.44419598,119460.0,119450.0,0.04762456]
[1753370008224,1.8588613,119460.0,119450.0,0.01892433]
[1753370009929,0.3230523,119450.0,119440.0,0.02820639]
[1753370010228,0.80969123,119450.0,119440.0,0.04639]